[Event "Late-Titled-Tuesday-Blitz-May-07-2024"]
[Site "Chess.com"]
[Date "2024.05.07"]
[Round "9"]
[White "CombativeWombat"]
[Black "HajiyevKanan"]
[Result "0-1"]
[WhiteElo "2336"]
[BlackElo "2546"]
[TimeControl "180+1"]
[EndTime "15:44:20 PDT"]
[Termination "HajiyevKanan won by checkmate"]

1. e4 {[%clk 0:03:00.9]} 1... c6 {[%clk 0:03:00.6]} 2. Nc3 {[%clk 0:03:00.4]}
2... d5 {[%clk 0:03:01.5]} 3. Nf3 {[%clk 0:03:00.6]} 3... a6 {[%clk 0:03:02.2]}
4. d4 {[%clk 0:03:00]} 4... Bg4 {[%clk 0:03:02.8]} 5. e5 {[%clk 0:02:55.9]} 5...
e6 {[%clk 0:03:02.8]} 6. h3 {[%clk 0:02:49.3]} 6... Bh5 {[%clk 0:03:02.1]} 7.
Bd3 {[%clk 0:02:42.8]} 7... c5 {[%clk 0:02:59]} 8. dxc5 {[%clk 0:02:39.9]} 8...
Bxc5 {[%clk 0:02:59.9]} 9. Qe2 {[%clk 0:02:34.7]} 9... Nc6 {[%clk 0:02:59.9]}
10. Bf4 {[%clk 0:02:31.6]} 10... Nd4 {[%clk 0:02:59.1]} 11. Qd1 {[%clk
0:02:23.2]} 11... Nxf3+ {[%clk 0:02:56.3]} 12. gxf3 {[%clk 0:02:23]} 12... Qb6
{[%clk 0:02:55.6]} 13. Qd2 {[%clk 0:02:15.5]} 13... Bxf2+ {[%clk 0:02:21.2]} 14.
Qxf2 {[%clk 0:02:14.7]} 14... Qxb2 {[%clk 0:02:21.9]} 15. Kd2 {[%clk 0:01:59.9]}
15... Rc8 {[%clk 0:02:18.5]} 16. Qd4 {[%clk 0:01:59.8]} 16... Ne7 {[%clk
0:02:09.3]} 17. Rhb1 {[%clk 0:01:55.9]} 17... Qa3 {[%clk 0:02:08.8]} 18. Rxb7
{[%clk 0:01:45.4]} 18... O-O {[%clk 0:01:59.9]} 19. Rab1 {[%clk 0:01:30.9]}
19... Nc6 {[%clk 0:01:57.7]} 20. Qa4 {[%clk 0:01:30.9]} 20... Qc5 {[%clk
0:01:52.7]} 21. Ne2 {[%clk 0:01:20.8]} 21... Bxf3 {[%clk 0:01:43.5]} 22. Be3
{[%clk 0:01:17.6]} 22... d4 {[%clk 0:01:18.6]} 23. Nxd4 {[%clk 0:01:17.8]} 23...
Nxe5 {[%clk 0:01:17.4]} 24. Nxe6 {[%clk 0:01:02.7]} 24... Qc3+ {[%clk
0:01:12.6]} 25. Kc1 {[%clk 0:00:49.7]} 25... Nxd3# {[%clk 0:01:12.5]} 0-1

[Event "Late-Titled-Tuesday-Blitz-May-07-2024"]
[Site "Chess.com"]
[Date "2024.05.07"]
[Round "9"]
[White "shirovin"]
[Black "giomar27"]
[Result "0-1"]
[WhiteElo "2112"]
[BlackElo "2471"]
[TimeControl "180+1"]
[EndTime "15:44:31 PDT"]
[Termination "giomar27 won on time"]

1. e4 {[%clk 0:03:00.9]} 1... e5 {[%clk 0:02:59.6]} 2. Nf3 {[%clk 0:02:58]} 2...
Nf6 {[%clk 0:02:58.8]} 3. Bc4 {[%clk 0:02:58.2]} 3... Nc6 {[%clk 0:02:58.3]} 4.
d3 {[%clk 0:02:50]} 4... h6 {[%clk 0:02:58.1]} 5. O-O {[%clk 0:02:49.3]} 5... d6
{[%clk 0:02:57.9]} 6. Nbd2 {[%clk 0:02:43.8]} 6... Na5 {[%clk 0:02:55.1]} 7.
Bb5+ {[%clk 0:02:39.6]} 7... c6 {[%clk 0:02:55.6]} 8. Ba4 {[%clk 0:02:38.5]}
8... b5 {[%clk 0:02:56.2]} 9. Bb3 {[%clk 0:02:38.2]} 9... Be7 {[%clk 0:02:54.3]}
10. d4 {[%clk 0:02:31.6]} 10... Nxb3 {[%clk 0:02:52.4]} 11. axb3 {[%clk
0:02:30.6]} 11... Qc7 {[%clk 0:02:52.7]} 12. c3 {[%clk 0:02:26.9]} 12... O-O
{[%clk 0:02:52.5]} 13. Re1 {[%clk 0:02:26.4]} 13... Bb7 {[%clk 0:02:52.5]} 14.
Nf1 {[%clk 0:02:26.4]} 14... a5 {[%clk 0:02:51.8]} 15. Ng3 {[%clk 0:02:25.2]}
15... Rfe8 {[%clk 0:02:51.2]} 16. Nf5 {[%clk 0:02:24.5]} 16... Bf8 {[%clk
0:02:51.5]} 17. Qd3 {[%clk 0:02:01.9]} 17... d5 {[%clk 0:02:44.6]} 18. Nxe5
{[%clk 0:01:44]} 18... Nxe4 {[%clk 0:02:44.4]} 19. Qf3 {[%clk 0:01:29.1]} 19...
Bc8 {[%clk 0:02:38.8]} 20. Ng3 {[%clk 0:01:23.7]} 20... Nxg3 {[%clk 0:02:37.7]}
21. Bf4 {[%clk 0:00:42]} 21... Ne4 {[%clk 0:02:28.1]} 22. Qh5 {[%clk 0:00:22.7]}
22... Be6 {[%clk 0:02:23.8]} 23. f3 {[%clk 0:00:17.1]} 23... Nf6 {[%clk
0:02:23.2]} 24. Qh4 {[%clk 0:00:16.3]} 24... g5 {[%clk 0:02:15.2]} 25. Bxg5
{[%clk 0:00:15.4]} 25... hxg5 {[%clk 0:02:16.1]} 26. Qxg5+ {[%clk 0:00:15.2]}
26... Bg7 {[%clk 0:02:16.7]} 27. Re3 {[%clk 0:00:07.5]} 27... Nh7 {[%clk
0:02:15.9]} 28. Qg3 {[%clk 0:00:06.2]} 28... Qd6 {[%clk 0:02:13.1]} 29. f4
{[%clk 0:00:05.7]} 29... Bf5 {[%clk 0:02:12.4]} 30. Qh4 {[%clk 0:00:04.9]} 30...
Qh6 {[%clk 0:02:11.6]} 31. Qf2 {[%clk 0:00:02.9]} 31... Nf6 {[%clk 0:02:11]} 32.
Rg3 {[%clk 0:00:00.9]} 32... Ne4 {[%clk 0:02:10]} 0-1

[Event "Late-Titled-Tuesday-Blitz-May-07-2024"]
[Site "Chess.com"]
[Date "2024.05.07"]
[Round "9"]
[White "Flaccidmoves"]
[Black "Statham_01"]
[Result "0-1"]
[WhiteElo "2372"]
[BlackElo "2613"]
[TimeControl "180+1"]
[EndTime "15:44:31 PDT"]
[Termination "Statham_01 won by resignation"]

1. Nf3 {[%clk 0:02:58.8]} 1... d6 {[%clk 0:02:59.1]} 2. d4 {[%clk 0:02:58.3]}
2... Bd7 {[%clk 0:02:58.4]} 3. e4 {[%clk 0:02:57.8]} 3... g6 {[%clk 0:02:59]} 4.
Bc4 {[%clk 0:02:57.2]} 4... e6 {[%clk 0:02:59.4]} 5. Bg5 {[%clk 0:02:55.5]} 5...
Ne7 {[%clk 0:02:58.7]} 6. Bf6 {[%clk 0:02:55]} 6... Rg8 {[%clk 0:02:59]} 7. Ng5
{[%clk 0:02:50]} 7... h6 {[%clk 0:02:54.7]} 8. Nh7 {[%clk 0:02:33.2]} 8... c5
{[%clk 0:02:54]} 9. Bh8 {[%clk 0:02:13.1]} 9... Qa5+ {[%clk 0:02:41.7]} 10. b4
{[%clk 0:02:10.4]} 10... Qxb4+ {[%clk 0:02:41.3]} 11. c3 {[%clk 0:02:08.2]}
11... Qxc4 {[%clk 0:02:41.1]} 12. Nf6+ {[%clk 0:02:05.5]} 12... Kd8 {[%clk
0:02:41.5]} 13. Nxg8 {[%clk 0:02:05.1]} 13... Nxg8 {[%clk 0:02:41.5]} 14. dxc5
{[%clk 0:01:49.1]} 14... Qxe4+ {[%clk 0:02:39.8]} 15. Kf1 {[%clk 0:01:44]} 15...
Bb5+ {[%clk 0:02:39.5]} 16. Kg1 {[%clk 0:01:43.8]} 16... Bc6 {[%clk 0:02:39.7]}
17. Qf1 {[%clk 0:01:35.3]} 17... f6 {[%clk 0:02:21.3]} 18. Nd2 {[%clk
0:01:33.1]} 18... Qf5 {[%clk 0:02:19.1]} 19. cxd6 {[%clk 0:01:19.8]} 19... Nd7
{[%clk 0:02:19]} 20. h4 {[%clk 0:01:11.1]} 20... Bxd6 {[%clk 0:02:13.5]} 21. Nc4
{[%clk 0:01:11.1]} 21... Bc5 {[%clk 0:02:10.9]} 22. Rh3 {[%clk 0:01:02.7]} 22...
Kc7 {[%clk 0:02:08.5]} 23. Rd1 {[%clk 0:00:59.1]} 23... Ne7 {[%clk 0:02:07.5]}
24. Bg7 {[%clk 0:00:52.6]} 24... Nd5 {[%clk 0:02:07.2]} 25. Bxh6 {[%clk
0:00:41.4]} 25... g5 {[%clk 0:02:07.7]} 26. hxg5 {[%clk 0:00:39.8]} 26... Nf4
{[%clk 0:02:07.3]} 27. Rg3 {[%clk 0:00:33.6]} 27... Nh5 {[%clk 0:02:06.9]} 28.
Qd3 {[%clk 0:00:25.1]} 28... Nxg3 {[%clk 0:02:01.5]} 29. Qxg3+ {[%clk
0:00:24.5]} 29... e5 {[%clk 0:02:01.6]} 30. g6 {[%clk 0:00:23.9]} 30... Qh5
{[%clk 0:01:58.6]} 31. Be3 {[%clk 0:00:17.7]} 31... Qxd1+ {[%clk 0:01:58]} 0-1

[Event "Late-Titled-Tuesday-Blitz-May-07-2024"]
[Site "Chess.com"]
[Date "2024.05.07"]
[Round "9"]
[White "Nicolik"]
[Black "Bryanl106"]
[Result "1-0"]
[WhiteElo "2527"]
[BlackElo "2698"]
[TimeControl "180+1"]
[EndTime "15:44:37 PDT"]
[Termination "Nicolik won by resignation"]

1. d4 {[%clk 0:03:00.9]} 1... Nf6 {[%clk 0:02:57.9]} 2. Nc3 {[%clk 0:03:01.2]}
2... d5 {[%clk 0:02:57.8]} 3. Bf4 {[%clk 0:03:01]} 3... a6 {[%clk 0:02:58.4]} 4.
e3 {[%clk 0:03:01]} 4... h6 {[%clk 0:02:59.2]} 5. a3 {[%clk 0:02:53.1]} 5... e6
{[%clk 0:02:56]} 6. g4 {[%clk 0:02:52.5]} 6... Nxg4 {[%clk 0:02:47.4]} 7. Qxg4
{[%clk 0:02:35.6]} 7... e5 {[%clk 0:02:47.4]} 8. Qf3 {[%clk 0:02:31.8]} 8...
exf4 {[%clk 0:02:47.6]} 9. Nxd5 {[%clk 0:02:32.3]} 9... fxe3 {[%clk 0:02:45.8]}
10. fxe3 {[%clk 0:02:22.2]} 10... c6 {[%clk 0:02:45.6]} 11. Nc3 {[%clk
0:02:19.3]} 11... Be7 {[%clk 0:02:45]} 12. O-O-O {[%clk 0:02:17.7]} 12... O-O
{[%clk 0:02:39.7]} 13. Bc4 {[%clk 0:02:17.8]} 13... Nd7 {[%clk 0:02:39]} 14.
Nge2 {[%clk 0:02:11.7]} 14... Nf6 {[%clk 0:02:34.9]} 15. Rhg1 {[%clk 0:02:07.8]}
15... Kh8 {[%clk 0:02:27.6]} 16. Nf4 {[%clk 0:01:58.4]} 16... Qa5 {[%clk
0:02:22.9]} 17. e4 {[%clk 0:01:29.7]} 17... Bg4 {[%clk 0:02:16.3]} 18. Rxg4
{[%clk 0:01:26.3]} 18... Nxg4 {[%clk 0:02:17.2]} 19. Qxg4 {[%clk 0:01:26.6]}
19... Bxa3 {[%clk 0:02:17.8]} 20. Qh3 {[%clk 0:01:12.4]} 20... b5 {[%clk
0:02:11]} 21. Bb3 {[%clk 0:01:08.2]} 21... Be7 {[%clk 0:02:08.1]} 22. Rg1 {[%clk
0:01:02.7]} 22... b4 {[%clk 0:01:52.6]} 23. Nce2 {[%clk 0:00:42.7]} 23... Qa1+
{[%clk 0:01:47.7]} 24. Kd2 {[%clk 0:00:42.4]} 24... Qxb2 {[%clk 0:01:48.6]} 25.
Qf5 {[%clk 0:00:27.1]} 25... Bf6 {[%clk 0:01:32.7]} 26. e5 {[%clk 0:00:25.8]}
26... Bg5 {[%clk 0:01:32.8]} 27. Rxg5 {[%clk 0:00:25.3]} 27... hxg5 {[%clk
0:01:32.5]} 28. Qh3+ {[%clk 0:00:25.5]} 28... Kg8 {[%clk 0:01:32.7]} 29. Ng6
{[%clk 0:00:25.5]} 1-0

[Event "Late-Titled-Tuesday-Blitz-May-07-2024"]
[Site "Chess.com"]
[Date "2024.05.07"]
[Round "9"]
[White "Franmu14"]
[Black "cthulhuuu"]
[Result "1-0"]
[WhiteElo "2746"]
[BlackElo "2553"]
[TimeControl "180+1"]
[EndTime "15:44:40 PDT"]
[Termination "Franmu14 won by checkmate"]

1. e4 {[%clk 0:03:00.9]} 1... d6 {[%clk 0:02:59.8]} 2. d4 {[%clk 0:02:59.9]}
2... Nf6 {[%clk 0:03:00.5]} 3. Nc3 {[%clk 0:03:00.5]} 3... c6 {[%clk 0:03:01]}
4. f3 {[%clk 0:03:01.1]} 4... b5 {[%clk 0:03:00.8]} 5. Be3 {[%clk 0:03:01.7]}
5... e5 {[%clk 0:03:01.1]} 6. Qd2 {[%clk 0:02:58.9]} 6... Be7 {[%clk 0:03:01.7]}
7. O-O-O {[%clk 0:02:59.6]} 7... Nbd7 {[%clk 0:03:00.4]} 8. Kb1 {[%clk
0:02:59.3]} 8... O-O {[%clk 0:03:00.3]} 9. h4 {[%clk 0:02:59.1]} 9... a5 {[%clk
0:03:00.2]} 10. h5 {[%clk 0:02:57.4]} 10... b4 {[%clk 0:02:28]} 11. Na4 {[%clk
0:02:54.2]} 11... d5 {[%clk 0:02:09.1]} 12. exd5 {[%clk 0:02:36.2]} 12... Nxd5
{[%clk 0:02:09.5]} 13. Bc4 {[%clk 0:02:36]} 13... Nxe3 {[%clk 0:01:44.6]} 14.
Qxe3 {[%clk 0:02:36.9]} 14... Bg5 {[%clk 0:01:42.1]} 15. Qf2 {[%clk 0:02:33.5]}
15... Nb6 {[%clk 0:01:31]} 16. Nxb6 {[%clk 0:02:28.6]} 16... Qxb6 {[%clk
0:01:31.9]} 17. h6 {[%clk 0:02:28.7]} 17... g6 {[%clk 0:01:24.7]} 18. Ne2 {[%clk
0:02:24.7]} 18... Re8 {[%clk 0:00:56.4]} 19. f4 {[%clk 0:02:17.5]} 19... exf4
{[%clk 0:00:37.7]} 20. Nxf4 {[%clk 0:02:18.4]} 20... Qc7 {[%clk 0:00:34.3]} 21.
Nd3 {[%clk 0:02:01.1]} 21... Be3 {[%clk 0:00:28.8]} 22. Qf6 {[%clk 0:01:54.5]}
22... Bxh6 {[%clk 0:00:06.5]} 23. Rxh6 {[%clk 0:01:52.8]} 23... Be6 {[%clk
0:00:07.4]} 24. Rxh7 {[%clk 0:01:49.7]} 24... Kxh7 {[%clk 0:00:01.8]} 25. Rh1+
{[%clk 0:01:49.4]} 25... Kg8 {[%clk 0:00:02.2]} 26. Rh8# {[%clk 0:01:49.3]} 1-0

[Event "Late-Titled-Tuesday-Blitz-May-07-2024"]
[Site "Chess.com"]
[Date "2024.05.07"]
[Round "9"]
[White "stollenmonster"]
[Black "Nf3c5"]
[Result "1-0"]
[WhiteElo "2877"]
[BlackElo "2648"]
[TimeControl "180+1"]
[EndTime "15:44:58 PDT"]
[Termination "stollenmonster won by resignation"]

1. e4 {[%clk 0:03:00.9]} 1... c5 {[%clk 0:02:53.9]} 2. Nf3 {[%clk 0:03:00.2]}
2... Nc6 {[%clk 0:02:54.3]} 3. Nc3 {[%clk 0:02:59.9]} 3... e5 {[%clk 0:02:53.5]}
4. g3 {[%clk 0:02:59]} 4... g6 {[%clk 0:02:50.2]} 5. Bg2 {[%clk 0:02:59.4]} 5...
Bg7 {[%clk 0:02:49.7]} 6. d3 {[%clk 0:03:00.3]} 6... Nge7 {[%clk 0:02:49]} 7.
O-O {[%clk 0:03:01.2]} 7... O-O {[%clk 0:02:48.5]} 8. Re1 {[%clk 0:03:01.5]}
8... h6 {[%clk 0:02:48.7]} 9. Nd5 {[%clk 0:03:00.6]} 9... d6 {[%clk 0:02:46.8]}
10. c4 {[%clk 0:03:00.4]} 10... f5 {[%clk 0:02:36.5]} 11. Nxe7+ {[%clk
0:02:51.9]} 11... Nxe7 {[%clk 0:02:30.4]} 12. exf5 {[%clk 0:02:51.6]} 12... gxf5
{[%clk 0:02:12.3]} 13. Nh4 {[%clk 0:02:46.3]} 13... Qe8 {[%clk 0:02:10.4]} 14.
f4 {[%clk 0:02:45]} 14... Ng6 {[%clk 0:02:07.4]} 15. Nxg6 {[%clk 0:02:35.8]}
15... Qxg6 {[%clk 0:02:05.3]} 16. Be3 {[%clk 0:02:34.2]} 16... e4 {[%clk
0:01:21.4]} 17. dxe4 {[%clk 0:02:33]} 17... fxe4 {[%clk 0:01:16.4]} 18. Qd5+
{[%clk 0:02:31.5]} 18... Be6 {[%clk 0:01:13.5]} 19. Qxd6 {[%clk 0:02:23.8]}
19... b6 {[%clk 0:01:05.7]} 20. Rad1 {[%clk 0:02:24.1]} 20... Bxb2 {[%clk
0:00:59.7]} 21. Bf2 {[%clk 0:02:19.8]} 21... Bf5 {[%clk 0:00:47.5]} 22. Qd5+
{[%clk 0:02:17.9]} 22... Kh8 {[%clk 0:00:46.1]} 23. Bxe4 {[%clk 0:02:16.4]}
23... Rae8 {[%clk 0:00:36.8]} 24. Bxf5 {[%clk 0:02:14.2]} 24... Rxe1+ {[%clk
0:00:37.7]} 25. Rxe1 {[%clk 0:02:13.7]} 25... Qxf5 {[%clk 0:00:38.6]} 26. Qd6
{[%clk 0:02:08]} 26... Qf6 {[%clk 0:00:36.7]} 27. Re6 {[%clk 0:02:05.7]} 27...
Qf5 {[%clk 0:00:30.5]} 28. Rxh6+ {[%clk 0:02:01.8]} 28... Kg8 {[%clk 0:00:30.9]}
29. Re6 {[%clk 0:01:57.1]} 29... Bg7 {[%clk 0:00:27]} 30. Re7 {[%clk 0:01:45.8]}
30... Rf6 {[%clk 0:00:15.2]} 31. Qd8+ {[%clk 0:01:35.3]} 31... Rf8 {[%clk
0:00:14]} 32. Qd7 {[%clk 0:01:35.6]} 32... Bf6 {[%clk 0:00:13.4]} 33. Qxf5
{[%clk 0:01:34.4]} 1-0

[Event "Late-Titled-Tuesday-Blitz-May-07-2024"]
[Site "Chess.com"]
[Date "2024.05.07"]
[Round "9"]
[White "Romkachess"]
[Black "The_Machine04"]
[Result "0-1"]
[WhiteElo "2614"]
[BlackElo "2784"]
[TimeControl "180+1"]
[EndTime "15:45:11 PDT"]
[Termination "The_Machine04 won by resignation"]

1. e4 {[%clk 0:03:00.1]} 1... d6 {[%clk 0:02:59]} 2. d4 {[%clk 0:02:59.7]} 2...
Nf6 {[%clk 0:02:56.3]} 3. Nc3 {[%clk 0:02:58]} 3... e5 {[%clk 0:02:55.5]} 4. Nf3
{[%clk 0:02:56.7]} 4... Nbd7 {[%clk 0:02:55.4]} 5. Rg1 {[%clk 0:02:56.5]} 5...
c6 {[%clk 0:02:55]} 6. g4 {[%clk 0:02:55.4]} 6... h6 {[%clk 0:02:55.6]} 7. h4
{[%clk 0:02:55.1]} 7... exd4 {[%clk 0:02:55.8]} 8. Nxd4 {[%clk 0:02:54.3]} 8...
Ne5 {[%clk 0:02:56.2]} 9. Be2 {[%clk 0:02:53]} 9... d5 {[%clk 0:02:55.3]} 10.
Nf5 {[%clk 0:02:26.4]} 10... Bxf5 {[%clk 0:02:37.2]} 11. exf5 {[%clk 0:02:24.2]}
11... d4 {[%clk 0:02:36.7]} 12. g5 {[%clk 0:01:42]} 12... hxg5 {[%clk
0:02:26.7]} 13. hxg5 {[%clk 0:01:38.3]} 13... dxc3 {[%clk 0:02:24.8]} 14. Qxd8+
{[%clk 0:01:36.3]} 14... Rxd8 {[%clk 0:02:23.9]} 15. gxf6 {[%clk 0:01:31.9]}
15... gxf6 {[%clk 0:02:18.5]} 16. f4 {[%clk 0:01:17.5]} 16... Bb4 {[%clk
0:02:12.1]} 17. b3 {[%clk 0:01:17.4]} 17... Bc5 {[%clk 0:01:59.8]} 18. Rf1
{[%clk 0:00:54.1]} 18... Nd7 {[%clk 0:01:52.3]} 19. Bd3 {[%clk 0:00:54.5]} 19...
Nb6 {[%clk 0:01:47.8]} 20. Ke2 {[%clk 0:00:53.7]} 20... Rh2+ {[%clk 0:01:46.9]}
21. Kf3 {[%clk 0:00:51.6]} 21... Kd7 {[%clk 0:01:39.2]} 22. a3 {[%clk
0:00:44.4]} 22... Rg8 {[%clk 0:01:25.2]} 23. b4 {[%clk 0:00:39.8]} 23... Rh3+
{[%clk 0:01:23.1]} 24. Ke2 {[%clk 0:00:33.7]} 24... Rg2+ {[%clk 0:01:22.5]} 25.
Kd1 {[%clk 0:00:22.1]} 25... Bd4 {[%clk 0:01:21.3]} 26. a4 {[%clk 0:00:16.2]}
26... Rxd3+ {[%clk 0:01:16]} 27. cxd3 {[%clk 0:00:13.2]} 27... c2+ {[%clk
0:01:16.9]} 28. Ke1 {[%clk 0:00:12.4]} 28... Bxa1 {[%clk 0:01:17.8]} 0-1

[Event "Late-Titled-Tuesday-Blitz-May-07-2024"]
[Site "Chess.com"]
[Date "2024.05.07"]
[Round "9"]
[White "ATM622"]
[Black "remyrushbrooke"]
[Result "1-0"]
[WhiteElo "2540"]
[BlackElo "2319"]
[TimeControl "180+1"]
[EndTime "15:45:12 PDT"]
[Termination "ATM622 won by resignation"]

1. d4 {[%clk 0:03:00.9]} 1... g6 {[%clk 0:02:56.8]} 2. g3 {[%clk 0:02:57.8]}
2... Bg7 {[%clk 0:02:56.9]} 3. Bg2 {[%clk 0:02:58]} 3... d6 {[%clk 0:02:57.2]}
4. Nf3 {[%clk 0:02:56.8]} 4... e5 {[%clk 0:02:57.6]} 5. dxe5 {[%clk 0:02:56.6]}
5... dxe5 {[%clk 0:02:58.5]} 6. Qxd8+ {[%clk 0:02:57.2]} 6... Kxd8 {[%clk
0:02:58.8]} 7. O-O {[%clk 0:02:58.1]} 7... c6 {[%clk 0:02:58.3]} 8. Rd1+ {[%clk
0:02:58.5]} 8... Kc7 {[%clk 0:02:58.8]} 9. Nc3 {[%clk 0:02:59]} 9... f6 {[%clk
0:02:55]} 10. e4 {[%clk 0:02:56.3]} 10... Nh6 {[%clk 0:02:49]} 11. h3 {[%clk
0:02:55.6]} 11... Nf7 {[%clk 0:02:47.5]} 12. Be3 {[%clk 0:02:54.3]} 12... Be6
{[%clk 0:02:46.4]} 13. b4 {[%clk 0:02:52.2]} 13... Nd7 {[%clk 0:02:41]} 14. b5
{[%clk 0:02:50]} 14... Nd6 {[%clk 0:02:29.7]} 15. bxc6 {[%clk 0:02:43.8]} 15...
bxc6 {[%clk 0:02:28.2]} 16. Bf1 {[%clk 0:02:42.3]} 16... Nc4 {[%clk 0:02:25.4]}
17. Bc1 {[%clk 0:02:31.5]} 17... Ndb6 {[%clk 0:02:13.8]} 18. a4 {[%clk
0:02:28.1]} 18... a5 {[%clk 0:02:12.2]} 19. Rb1 {[%clk 0:02:21.4]} 19... h6
{[%clk 0:01:56]} 20. Nh4 {[%clk 0:02:16.1]} 20... Bf7 {[%clk 0:01:51]} 21. f4
{[%clk 0:02:13.4]} 21... Rhd8 {[%clk 0:01:34.9]} 22. Rxd8 {[%clk 0:02:10.5]}
22... Rxd8 {[%clk 0:01:33.8]} 23. Nf3 {[%clk 0:01:52.5]} 23... Bf8 {[%clk
0:01:28]} 24. Kg2 {[%clk 0:01:44.3]} 24... Bb4 {[%clk 0:01:23.4]} 25. Ne2 {[%clk
0:01:28.1]} 25... Nxa4 {[%clk 0:01:09.7]} 26. fxe5 {[%clk 0:01:26.7]} 26... fxe5
{[%clk 0:01:04.1]} 27. Bxh6 {[%clk 0:01:24.9]} 27... Nd2 {[%clk 0:00:49.6]} 28.
Nxd2 {[%clk 0:01:11.2]} 28... Bxd2 {[%clk 0:00:49.2]} 29. Bg7 {[%clk 0:01:11.1]}
29... Nc3 {[%clk 0:00:39.4]} 30. Bxe5+ {[%clk 0:01:09.4]} 30... Kc8 {[%clk
0:00:32.9]} 31. Rb8+ {[%clk 0:01:06.5]} 31... Kd7 {[%clk 0:00:33.1]} 32. Rxd8+
{[%clk 0:01:06.6]} 32... Kxd8 {[%clk 0:00:34]} 33. Bxc3 {[%clk 0:01:06.9]} 33...
Bxc3 {[%clk 0:00:32.4]} 34. Nxc3 {[%clk 0:01:07.8]} 34... a4 {[%clk 0:00:31.7]}
35. Nxa4 {[%clk 0:01:07.7]} 1-0

[Event "Late-Titled-Tuesday-Blitz-May-07-2024"]
[Site "Chess.com"]
[Date "2024.05.07"]
[Round "9"]
[White "Iball95"]
[Black "grzechu96"]
[Result "1-0"]
[WhiteElo "2908"]
[BlackElo "2786"]
[TimeControl "180+1"]
[EndTime "15:45:19 PDT"]
[Termination "Iball95 won on time"]

1. e4 {[%clk 0:02:58.6]} 1... c5 {[%clk 0:03:00.3]} 2. Nf3 {[%clk 0:02:58.4]}
2... d6 {[%clk 0:03:00.6]} 3. Nc3 {[%clk 0:02:59]} 3... a6 {[%clk 0:02:57.7]} 4.
d4 {[%clk 0:02:58.8]} 4... cxd4 {[%clk 0:02:57.8]} 5. Qxd4 {[%clk 0:02:59.7]}
5... Nc6 {[%clk 0:02:56.3]} 6. Qd3 {[%clk 0:03:00.1]} 6... Bg4 {[%clk
0:02:51.8]} 7. Nd4 {[%clk 0:02:59.1]} 7... Nf6 {[%clk 0:02:45.1]} 8. Bg5 {[%clk
0:02:47.6]} 8... Nxd4 {[%clk 0:01:36.8]} 9. Qxd4 {[%clk 0:02:48.5]} 9... e5
{[%clk 0:01:33.4]} 10. Qb4 {[%clk 0:02:38]} 10... Be7 {[%clk 0:01:05.9]} 11.
Bxf6 {[%clk 0:02:29.3]} 11... Bxf6 {[%clk 0:01:06]} 12. Qxb7 {[%clk 0:02:28]}
12... O-O {[%clk 0:00:57.1]} 13. Qd5 {[%clk 0:02:27.7]} 13... Qb6 {[%clk
0:00:44.8]} 14. Rb1 {[%clk 0:02:24.4]} 14... Rfc8 {[%clk 0:00:38.3]} 15. Qd2
{[%clk 0:02:21.1]} 15... Be6 {[%clk 0:00:16.1]} 16. Bd3 {[%clk 0:02:21.6]} 16...
Rc5 {[%clk 0:00:04.5]} 17. O-O {[%clk 0:02:21.3]} 17... Rac8 {[%clk 0:00:05.2]}
18. Rfd1 {[%clk 0:02:17]} 18... Qa5 {[%clk 0:00:05.6]} 19. a3 {[%clk 0:02:15.4]}
19... Qc7 {[%clk 0:00:05.4]} 20. Bxa6 {[%clk 0:02:10]} 20... Rb8 {[%clk
0:00:05.5]} 21. a4 {[%clk 0:02:05.9]} 21... Qa5 {[%clk 0:00:04.7]} 22. Bd3
{[%clk 0:02:05.3]} 22... h6 {[%clk 0:00:05]} 23. h3 {[%clk 0:02:05.4]} 23... Bg5
{[%clk 0:00:05.1]} 24. Qe1 {[%clk 0:02:05.5]} 24... Qc7 {[%clk 0:00:04.3]} 25.
Nb5 {[%clk 0:02:03.8]} 25... Qb6 {[%clk 0:00:03.5]} 26. b4 {[%clk 0:02:02.8]}
26... Rcc8 {[%clk 0:00:04.2]} 27. a5 {[%clk 0:02:02.8]} 27... Qd8 {[%clk
0:00:03.8]} 28. a6 {[%clk 0:01:57.9]} 28... Rb6 {[%clk 0:00:01.7]} 29. a7 {[%clk
0:01:55.7]} 29... Qd7 {[%clk 0:00:02.1]} 30. Ra1 {[%clk 0:01:54.5]} 30... Ra8
{[%clk 0:00:01.5]} 31. c4 {[%clk 0:01:54.4]} 31... Qc6 {[%clk 0:00:01.4]} 32.
Bf1 {[%clk 0:01:50]} 32... Bxc4 {[%clk 0:00:01.6]} 33. Rxd6 {[%clk 0:01:50.2]}
33... Qxb5 {[%clk 0:00:02]} 34. Bxc4 {[%clk 0:01:49.1]} 34... Qxb4 {[%clk
0:00:01.9]} 35. Qxb4 {[%clk 0:01:48.6]} 35... Rxb4 {[%clk 0:00:02.8]} 36. Bd5
{[%clk 0:01:49.1]} 36... Rxa7 {[%clk 0:00:01.5]} 37. Rxa7 {[%clk 0:01:48.5]}
37... Bf4 {[%clk 0:00:02.4]} 38. g3 {[%clk 0:01:48.2]} 38... Bg5 {[%clk
0:00:02.4]} 39. Bxf7+ {[%clk 0:01:48]} 1-0